bitfinex/quotes_ETHUSD_20220215
["timestamp","ask_amount","ask_price","bid_price","bid_amount"]
[1644888373828,3.40448855,2940.2,2939.4,4.27996233]
[1644888374072,3.41432022,2940.2,2939.7,0.00983363]
[1644888374572,0.001,2940.1,2939.8,0.8505789]
[1644888374973,1.17426282,2939.9,2939.8,0.8505789]
[1644888375176,1.17526282,2939.9,2939.8,0.86041221]
[1644888376072,0.001,2939.9,2939.8,0.8505789]
[1644888376277,3.40448855,2940.2,2939.8,5.43054123]
[1644888376278,0.001,2940.1,2939.8,5.43054123]
[1644888376476,0.001,2940.1,2940.0,4.27996233]
[1644888376877,0.001,2940.1,2940.0,4.57996233]
[1644888378224,3.41432051,2940.2,2940.0,4.57996233]
[1644888378225,1.20855834,2940.2,2940.0,4.57996233]
[1644888378427,0.016144,2940.4,2940.1,5.0]
[1644888378625,0.016144,2940.4,2940.3,4.27996233]
[1644888378821,0.016144,2940.4,2940.3,5.57996233]
[1644888379621,0.016144,2940.4,2940.3,0.3]
[1644888379824,0.016144,2940.4,2940.1,4.27996233]
[1644888380230,0.016144,2940.4,2939.9,2.0008938]
[1644888380430,0.016144,2940.4,2940.3,4.27996233]
[1644888380626,0.01153902,2941.0,2940.3,4.57996233]
[1644888380627,0.00305546,2940.8,2940.3,4.57996233]
[1644888380832,0.00611092,2941.1,2940.5,4.27996233]
[1644888381227,0.00611092,2941.1,2940.5,0.3]
[1644888381228,0.04035807,2940.9,2940.5,0.3]
[1644888381425,0.04035807,2940.9,2940.4,1.7006854]
[1644888382471,0.04035807,2940.9,2940.5,0.00633824]
[1644888382679,0.9332452,2940.6,2940.5,0.00633824]
[1644888383074,4.64234904,2940.6,2940.5,0.00633824]
[1644888383275,4.65789493,2940.6,2940.5,0.00633824]
[1644888383473,0.9342452,2940.6,2940.3,1.6508052]
[1644888383674,0.00711092,2940.8,2940.4,0.00983202]
[1644888383874,0.00611092,2940.8,2940.4,0.00983202]
[1644888384677,0.00611092,2940.8,2940.3,1.6508052]
[1644888384875,0.00611092,2940.8,2940.5,0.85966171]
[1644888385732,0.00611092,2940.8,2940.5,0.8503955]
[1644888386132,0.00611092,2940.8,2940.5,0.85966161]
[1644888386732,3.40611092,2940.8,2940.5,0.85966161]
[1644888386932,0.001,2940.7,2940.5,0.8503955]
[1644888387336,0.001,2940.7,2940.5,0.85966161]
[1644888388134,0.001,2940.7,2940.5,0.8503955]
[1644888388535,0.001,2940.7,2940.5,0.85966171]
[1644888388736,0.001,2940.7,2940.5,0.00926621]
[1644888389368,0.001,2940.7,2940.2,0.8504867]
[1644888389578,0.001,2940.7,2940.5,0.00930418]
[1644888389971,0.85149,2940.7,2940.5,0.00930418]
[1644888390576,0.85149,2940.7,2940.2,0.8504867]
[1644888390775,1.03578737,2940.5,2940.0,1.7009348]
[1644888390969,0.001,2940.4,2940.0,2.0009348]
[1644888391170,0.001,2940.4,2940.0,5.13431468]
[1644888391370,0.001,2940.4,2940.2,4.27996233]
[1644888391770,0.001,2940.7,2940.2,4.27996233]
[1644888391970,0.001,2940.7,2940.3,4.83303127]
[1644888392180,0.001,2940.7,2940.4,4.27996233]
[1644888393019,0.001,2940.7,2940.4,7.53083423]
[1644888393219,0.001,2940.7,2940.4,4.58960248]
[1644888393418,0.001,2940.7,2940.4,7.75424522]
[1644888393619,0.001,2940.7,2940.4,4.58960248]
[1644888394019,0.001,2940.7,2940.4,5.13981708]
[1644888394020,0.00546611,2940.7,2940.4,5.13981708]
[1644888394321,0.00546611,2940.7,2940.3,1.7007849]
[1644888394520,0.85594611,2940.7,2940.4,0.00898172]
[1644888395319,0.85594611,2940.7,2940.3,1.7007849]
[1644888395520,0.85594611,2940.7,2940.4,4.27996233]
[1644888395521,0.00546611,2940.7,2940.4,4.27996233]
[1644888395738,3.40611092,2940.8,2940.6,4.27996233]
[1644888395739,0.93138772,2940.8,2940.6,4.27996233]
[1644888396122,0.93138772,2940.8,2940.7,1.0]
[1644888396322,0.94360956,2940.8,2940.7,1.0]
[1644888397383,5.807e-05,2940.9,2940.8,0.01219044]
[1644888397585,5.807e-05,2940.9,2940.8,4.29215277]
[1644888397790,0.01812086,2941.7,2940.8,6.44216277]
[1644888397986,0.01812086,2941.7,2941.0,1.6998917]
[1644888398184,0.00299044,2941.2,2941.1,3.275]
[1644888398386,0.00299044,2941.2,2941.1,4.57996233]
[1644888398686,0.00299044,2941.2,2941.1,8.62737838]
[1644888399085,0.01812086,2941.7,2941.2,0.8500567]
[1644888399286,0.00933876,2941.3,2941.2,1.1500567]
[1644888400324,0.01812086,2941.7,2941.2,1.1500567]
[1644888400521,0.00955202,2941.4,2941.2,1.1500567]
[1644888400734,0.00955202,2941.4,2940.7,0.85989753]
[1644888400924,0.85983202,2941.4,2940.7,0.00955413]
[1644888401125,3.84675618,2941.4,2940.7,0.00955413]
[1644888401326,0.85138,2941.3,2940.7,0.00955413]
[1644888401526,0.001,2941.3,2940.4,3.5]
[1644888401731,0.001,2941.3,2940.8,0.8503247]
[1644888401732,0.00955229,2941.2,2940.8,0.8503247]
[1644888402132,0.00955229,2941.2,2940.8,0.8003247]
[1644888402728,2.18197569,2941.6,2940.8,0.8003247]
[1644888402929,0.00318383,2941.2,2940.8,0.8003247]
[1644888403527,0.00318383,2941.2,2940.9,1.7003637]
[1644888403927,0.001,2941.4,2940.9,1.7003637]
[1644888404188,0.00295625,2941.2,2940.9,1.7003637]
[1644888404588,0.00295625,2941.2,2940.9,2.5504637]
[1644888404790,0.00295625,2941.2,2941.0,0.850137]
[1644888404990,0.001,2941.5,2941.0,0.850137]
[1644888405189,2.35741415,2941.6,2941.0,0.850137]
[1644888405391,0.00295625,2941.2,2941.0,0.850137]
[1644888406191,0.001,2941.4,2941.0,0.850137]
[1644888406401,1.28606416,2941.5,2941.0,0.850137]
[1644888406690,0.00933487,2941.2,2941.0,0.850137]
[1644888407291,0.89458791,2941.1,2941.0,0.850137]
[1644888407496,0.89458791,2941.1,2940.3,4.27996233]
[1644888407692,0.89458791,2941.1,2940.7,0.00968268]
[1644888408322,0.85037,2941.0,2940.7,0.00968268]
[1644888408520,0.001,2941.0,2940.7,1.71009908]
[1644888408722,0.89458791,2941.1,2940.7,2.5506264]
[1644888408923,3.4,2941.0,2940.7,1.71009894]
[1644888409121,0.001,2940.9,2940.7,1.71009894]
[1644888409923,0.001,2940.9,2940.7,1.7004164]
[1644888410123,0.001,2940.9,2940.7,1.70974481]
[1644888410922,0.00544378,2940.9,2940.7,1.70974481]
[1644888411124,0.00544378,2940.9,2940.7,1.7004164]
[1644888411326,0.00544378,2940.9,2940.7,1.70974481]
[1644888412375,0.00544378,2940.9,2940.7,1.7004164]
[1644888412575,0.00544378,2940.9,2940.7,6.83994714]
[1644888412774,0.00544378,2940.9,2940.7,2.55998481]
[1644888412977,0.00544378,2940.9,2940.7,1.70974481]
[1644888413576,0.00544378,2940.9,2940.7,1.7004164]
[1644888413775,0.00544378,2940.9,2940.7,1.70974481]
[1644888414476,0.00544378,2940.9,2940.7,4.84951274]
[1644888414677,0.00544378,2940.9,2940.8,7.40938319]
[1644888414877,0.00544378,2940.9,2940.8,7.70938319]
[1644888415077,0.00544378,2940.9,2940.8,7.40938319]
[1644888415322,0.00544378,2940.9,2940.8,7.70938319]
[1644888416324,0.00544378,2940.9,2940.8,4.57996233]
[1644888416524,0.00544378,2940.9,2940.8,4.27996233]
[1644888417824,0.00544378,2940.9,2940.7,2.56002848]
[1644888418028,0.00544378,2940.9,2940.7,0.00935208]
[1644888418227,0.00544378,2940.9,2940.3,4.27996233]
[1644888418424,0.00544378,2940.9,2940.3,4.57996233]
[1644888418630,0.00544378,2940.9,2940.7,0.00935219]
[1644888419074,0.00544378,2940.9,2940.8,4.27996233]
[1644888419873,0.00544378,2940.9,2940.7,1.70977058]
[1644888420273,1.01681116,2940.8,2940.7,1.70977058]
[1644888420473,0.001,2940.8,2940.7,0.85959048]
[1644888420673,0.00544378,2940.9,2940.7,0.85024]
[1644888421676,0.00544378,2940.9,2940.6,1.7097109]
[1644888422174,0.00544378,2940.9,2940.7,4.27996233]
[1644888422375,0.92219484,2940.8,2940.6,1.70940233]
[1644888422583,0.92219484,2940.8,2940.7,0.85031]
[1644888422828,0.92219484,2940.8,2940.6,1.70940233]
[1644888422829,0.00093008,2940.7,2940.6,1.70940233]
[1644888423030,0.00537386,2940.7,2940.6,1.70940233]
[1644888423236,0.00093008,2940.7,2940.6,1.7003602]
[1644888424032,0.00093008,2940.7,2940.6,2.7283602]
[1644888425632,0.00093008,2940.7,2940.6,1.028]
[1644888427277,0.00193008,2940.7,2940.6,1.028]
[1644888427477,0.00093008,2940.7,2940.6,1.028]
[1644888427876,0.00093008,2940.7,2940.6,1.02691712]
[1644888428276,0.00093008,2940.7,2940.6,4.14244343]
[1644888428876,0.00093008,2940.7,2940.6,1.02691712]
[1644888429879,0.00093008,2940.7,2940.6,4.82691712]
[1644888430081,0.00093008,2940.7,2940.6,2.32691712]
[1644888431725,0.00093008,2940.7,2940.6,4.02714712]
[1644888432127,0.00093008,2940.7,2940.6,7.59603524]
[1644888433928,0.00093008,2940.7,2940.6,6.59603524]
[1644888434178,0.00093008,2940.7,2940.6,4.89580524]
[1644888434780,0.00093008,2940.7,2940.6,1.32691712]
[1644888436580,0.00093008,2940.7,2940.6,4.46146627]
[1644888436781,0.00093008,2940.7,2940.6,5.90449127]
[1644888438233,0.00093008,2940.7,2940.6,4.46146627]
[1644888439030,0.00093008,2940.7,2940.6,7.16169627]
[1644888439227,0.00093008,2940.7,2940.6,8.60468429]
[1644888439834,3.008e-05,2940.7,2940.6,9.26468429]
[1644888440030,3.4,2941.0,2940.9,2.52691712]
[1644888440230,3.4,2941.0,2940.9,9.58979747]
[1644888440434,1.8034486,2941.0,2940.9,10.58979747]
[1644888440831,0.00921518,2941.2,2940.9,10.58979747]
[1644888441031,0.00921518,2941.2,2941.1,1.02691712]
[1644888441231,0.01812086,2941.7,2941.1,2.76990514]
[1644888441432,0.01812086,2941.7,2941.6,5.30687945]
[1644888441681,0.01812086,2941.7,2941.6,5.60687945]
[1644888441892,0.01812086,2941.7,2941.6,11.84717939]
[1644888442082,1e-08,2941.7,2941.6,9.78970587]
[1644888442486,1e-08,2941.7,2941.6,10.63958587]
[1644888442681,1e-08,2941.7,2941.6,8.34717939]
[1644888443082,3.40000001,2941.7,2941.6,7.34717939]
[1644888443284,3.40000001,2941.7,2941.6,5.88327939]
[1644888443481,3.40000001,2941.7,2941.6,1.32691712]
[1644888443683,3.40000001,2941.7,2941.6,1.02691712]
[1644888445329,3.40100001,2941.7,2941.6,1.02691712]
[1644888447926,3.40100001,2941.7,2941.1,1.7003879]
[1644888448128,1.7015,2941.6,2940.8,1.7005292]
[1644888448326,0.001,2941.5,2940.8,1.7005292]
[1644888448527,0.86414679,2940.9,2940.8,1.7005292]
[1644888448827,0.001,2941.6,2940.7,4.28638039]
[1644888449073,0.001,2941.6,2941.0,1.7004086]
[1644888449074,0.8502,2941.5,2941.0,1.7004086]
[1644888449678,1.08524214,2941.3,2941.1,0.8502]
[1644888449880,0.001,2941.2,2941.1,0.8502]
[1644888450076,0.001,2941.2,2940.7,0.00923964]
[1644888450282,0.001,2941.2,2940.9,1.700417]
[1644888450874,0.001,2941.2,2941.0,0.8502677]
[1644888451078,3.4,2941.7,2941.1,4.27996233]
[1644888451079,0.001,2941.6,2941.1,4.27996233]
[1644888451280,0.00923782,2941.2,2941.1,1.700011]
[1644888451479,0.00923782,2941.2,2941.1,5.97997333]
[1644888451878,0.00923782,2941.2,2941.1,6.82998333]
[1644888452076,1.14103133,2941.4,2941.1,5.97997333]
[1644888452278,0.01023779,2941.3,2941.2,0.8501347]
[1644888453126,1.75145912,2941.4,2941.2,1.7003347]
[1644888453426,0.90126912,2941.4,2941.2,1.7003347]
[1644888453630,0.9105437,2941.4,2941.2,1.7003347]
[1644888454628,0.90126912,2941.4,2941.2,1.7003347]
[1644888454827,0.90420653,2941.4,2941.2,5.98029703]
[1644888455027,0.00293741,2941.4,2941.2,5.98029703]
[1644888455230,0.00293741,2941.4,2941.3,4.9426254]
[1644888455431,0.00293741,2941.4,2941.2,6.47029703]
[1644888455627,3.4,2941.7,2941.2,2.1903347]
[1644888455828,3.4,2941.7,2941.3,5.12997753]
[1644888456027,3.4,2941.7,2941.3,5.97999753]
[1644888456028,0.00293741,2941.5,2941.3,5.97999753]
[1644888456889,3.39855464,2941.7,2941.3,5.97999753]
[1644888457275,0.00935284,2941.5,2941.3,5.97999753]
[1644888458580,0.00935284,2941.5,2941.3,6.82996753]
[1644888459278,0.00935284,2941.5,2941.3,5.97999753]
[1644888459476,0.001,2941.6,2941.3,5.97999753]
[1644888459676,0.00936867,2941.5,2941.3,5.97999753]
[1644888460633,0.001,2941.6,2941.3,5.97999753]
[1644888460829,0.00936867,2941.5,2941.3,5.97999753]
[1644888461828,0.001,2941.6,2941.3,5.97999753]
[1644888462029,0.00872287,2941.5,2941.3,5.97999753]
[1644888462729,0.00872287,2941.5,2941.3,9.19074363]
[1644888462931,0.001,2941.6,2941.4,3.15309686]
[1644888463133,0.001,2941.6,2941.5,4.27996233]
[1644888463930,0.001,2941.6,2941.5,7.42348084]
[1644888464177,3.39855464,2941.7,2941.5,4.27996233]
[1644888464380,3.39855464,2941.7,2941.6,3.5]
[1644888464576,0.0019488,2942.0,2941.7,5.92021559]
[1644888464778,0.0019488,2942.0,2941.9,4.27996233]
[1644888465178,0.0019488,2942.0,2941.9,5.27996233]
[1644888465379,4.88e-05,2942.0,2941.9,5.27996233]
[1644888465580,4.88e-05,2942.0,2941.9,9.43976233]
[1644888465780,4.88e-05,2942.0,2941.9,12.58154476]
[1644888466379,2.00519339,2943.1,2942.0,5.0]
[1644888466578,0.00444378,2943.0,2942.8,4.27996233]
[1644888466978,1.87412299,2943.1,2942.8,4.27996233]
[1644888467179,1.87412299,2943.1,2943.0,4.27996233]
[1644888467378,0.0038976,2943.1,2943.0,4.27996233]
[1644888467821,0.0038976,2943.1,2942.8,1.6991757]
[1644888468028,0.0038976,2943.1,2942.9,5.12955023]
[1644888468426,0.0038976,2943.1,2942.9,5.97913023]
[1644888468824,0.0038976,2943.1,2942.9,5.12955023]
[1644888469223,0.01331884,2943.1,2942.9,5.12955023]
[1644888469823,0.01331884,2943.1,2942.9,4.27996233]
[1644888470223,0.8537176,2943.1,2942.9,4.27996233]
[1644888470423,0.86332542,2943.1,2942.9,4.27996233]
[1644888470625,0.01350542,2943.1,2942.9,4.27996233]
[1644888470824,0.01350542,2943.1,2942.8,0.8497811]
[1644888471030,0.01350542,2943.1,2942.1,4.27996233]
[1644888471225,0.01350542,2943.1,2942.0,3.5]
[1644888471427,0.0038976,2943.1,2942.0,7.77996233]
[1644888471700,0.84981,2943.0,2942.4,4.27996233]
[1644888471897,0.0096087,2942.7,2942.4,4.27996233]
[1644888472095,0.0096087,2942.7,2942.0,0.84991]
[1644888472297,0.0135063,2942.7,2942.1,4.27996233]
[1644888472698,0.0038976,2942.7,2942.1,4.27996233]
[1644888472896,0.009105,2942.5,2942.3,1.6996431]
[1644888473196,0.009105,2942.5,2942.4,4.27996233]
[1644888473399,0.0130026,2942.5,2942.4,7.63384021]
[1644888473998,0.0038976,2942.5,2942.4,7.63384021]
[1644888474697,0.0038976,2942.5,2942.4,4.27996233]
[1644888474998,0.0038976,2942.5,2942.4,7.67217862]
[1644888475625,0.03549999,2943.0,2942.5,5.0]
[1644888475829,0.04435776,2943.2,2942.6,9.08802]
[1644888476127,0.05215296,2943.2,2942.7,1.35205668]
[1644888476325,0.007,2943.5,2942.9,2.9]
[1644888476527,0.0155904,2943.2,2942.9,3.39]
[1644888476724,0.0155904,2943.2,2943.0,1.0]
[1644888476926,0.0155904,2943.2,2943.0,2.6988]
[1644888477127,0.0155904,2943.2,2943.1,4.27996233]
[1644888477726,0.0155904,2943.2,2943.0,0.84939]
[1644888477926,0.0155904,2943.2,2943.0,1.6988416]
[1644888478225,0.0155904,2943.2,2943.1,4.27996233]
[1644888483721,0.0155904,2943.2,2943.0,1.6988416]
[1644888484121,0.0155904,2943.2,2943.0,5.97880393]
[1644888484324,0.0155904,2943.2,2943.1,3.15098008]
[1644888485923,0.0155904,2943.2,2943.1,4.00041008]
[1644888487176,0.0155904,2943.2,2943.1,0.84943]
[1644888487781,0.0155904,2943.2,2943.0,5.97880393]
[1644888487977,0.0155904,2943.2,2943.0,6.82826393]
[1644888488379,0.0155904,2943.2,2943.1,3.17136278]
[1644888488578,0.0243901,2943.2,2943.1,3.17136278]
[1644888488778,0.007,2943.5,2943.3,1.55]
[1644888488980,0.007,2943.5,2943.4,7.97563743]
[1644888489184,0.02283908,2943.5,2943.4,7.97563743]
[1644888489378,0.02283908,2943.5,2943.4,4.27996233]
[1644888490326,0.02283908,2943.5,2943.3,5.12934073]
[1644888492527,0.02283908,2943.5,2943.3,0.8493784]
[1644888493330,0.03215524,2943.5,2943.3,0.8493784]
[1644888494389,0.02283908,2943.5,2943.3,0.8493784]
[1644888494593,0.03225339,2943.5,2943.3,0.8493784]
[1644888494991,0.03225339,2943.5,2943.4,4.27996233]
[1644888495587,0.02283908,2943.5,2943.4,4.27996233]
[1644888495790,0.02283908,2943.5,2943.3,0.8493784]
[1644888495791,0.02283908,2943.5,2943.3,5.12934073]
[1644888496990,0.03225339,2943.5,2943.3,5.12934073]
[1644888497195,0.94353276,2943.8,2943.4,0.84954]
[1644888497391,0.49,2944.7,2943.6,0.8495361]
[1644888497591,0.37973859,2944.4,2943.6,0.8495361]
[1644888497821,0.84951,2944.3,2943.4,1.6989885]
[1644888498722,1.69906,2944.2,2943.5,0.84952]
[1644888498922,1.11484723,2943.8,2943.5,0.84952]
[1644888499921,1.11484723,2943.8,2943.7,0.8495041]
[1644888500723,1.11484723,2943.8,2943.4,2.5485485]
[1644888501224,1.11484723,2943.8,2943.5,0.8495531]
[1644888501699,1.11484723,2943.8,2943.5,1.6990731]
[1644888502489,0.001,2943.7,2943.5,1.6990731]
[1644888503789,0.001,2943.7,2943.5,0.8495531]
[1644888505419,0.85057,2943.7,2943.5,0.85948368]
[1644888505623,0.001,2943.7,2943.5,0.85948368]
[1644888506027,0.001,2943.7,2943.5,0.00993058]
[1644888506423,0.001,2943.7,2943.2,0.06080681]
[1644888506424,2.08483335,2943.7,2943.2,0.06080681]
[1644888506622,0.491,2943.6,2943.5,0.00993058]
[1644888507324,0.001,2943.6,2943.5,0.00993058]
[1644888507524,0.001,2943.6,2943.2,0.91043361]
[1644888507525,2.18929,2943.6,2943.2,0.06080681]
[1644888507721,0.85072,2943.5,2943.2,0.06080681]
[1644888507923,0.84971,2943.4,2943.2,0.06080681]
[1644888508122,0.85071,2943.4,2943.2,0.06080681]
[1644888508522,1.18486547,2943.3,2943.2,0.06080681]
[1644888508721,1.18586547,2943.3,2943.2,0.06080681]
[1644888509177,1.18586547,2943.3,2943.2,0.07073806]
[1644888509376,1.18586547,2943.3,2942.5,6.6995078]
[1644888509377,0.84976,2943.2,2942.5,6.6995078]
[1644888509575,0.84978,2943.1,2942.2,5.0]
[1644888509774,0.85078,2943.1,2942.3,1.44210262]
[1644888509978,0.84978,2943.1,2942.4,1.44210262]
[1644888510173,0.84978,2943.1,2942.4,5.0]
[1644888510375,1.10371815,2942.7,2942.4,5.0]
[1644888510674,0.001,2942.6,2942.5,0.8497555]
[1644888510875,0.001,2942.9,2942.5,0.8497555]
[1644888511081,0.49,2943.4,2942.5,0.8497555]
[1644888511683,0.8497,2943.0,2942.5,0.8497555]
[1644888511878,0.84976,2943.0,2942.5,0.8497555]
[1644888512579,0.84975,2942.9,2942.5,0.8497555]
[1644888512842,0.8508,2942.9,2942.5,0.8497555]
[1644888513039,0.001,2943.0,2942.5,0.8497555]
[1644888513642,0.85074,2943.0,2942.5,0.8497555]
[1644888513842,0.85074,2943.0,2942.6,0.00993247]
[1644888514041,1.69949,2943.0,2942.6,0.85966877]
[1644888514242,0.001,2942.9,2942.6,0.85966877]
[1644888514447,0.84975,2943.0,2942.6,0.85966877]
[1644888514643,0.84975,2942.9,2942.6,0.85966877]
[1644888514844,1.00171072,2942.7,2942.2,5.0]
[1644888515043,1.00171072,2942.7,2942.3,1.44208767]
[1644888515044,0.001,2942.6,2942.3,1.44208767]
[1644888515250,0.001,2942.6,2941.8,5.51604954]
[1644888515447,0.001,2942.6,2942.0,5.0]
[1644888515643,0.001,2942.6,2942.1,1.44216421]
[1644888515844,0.84986,2942.5,2942.1,1.44216421]
[1644888516245,0.001,2942.6,2942.3,0.8498809]
[1644888517381,0.85082,2942.6,2942.3,0.85981403]
[1644888517982,0.85082,2942.6,2942.3,0.00993313]
[1644888518485,0.001,2942.6,2942.3,0.8498376]
[1644888518782,0.001,2942.6,2942.3,0.85977073]
[1644888519586,0.85081,2942.6,2942.3,0.8498376]
[1644888519782,0.85081,2942.6,2942.3,0.85977073]
[1644888520182,0.001,2942.6,2942.4,5.0]
[1644888520426,4.55630457,2943.4,2942.4,5.0]
[1644888520427,0.001,2943.3,2942.4,5.0]
[1644888520622,0.001,2943.3,2942.3,0.30993313]
[1644888520827,0.001,2943.3,2942.8,0.8496843]
[1644888521034,0.8497,2943.0,2942.7,0.00993225]
[1644888521224,1.10346911,2942.8,2942.7,0.00993225]
[1644888521423,1.10446911,2942.8,2942.7,0.00993225]
[1644888522023,0.85075,2942.8,2942.6,0.8497445]
[1644888522225,0.001,2943.1,2942.7,8.06909282]
[1644888522426,0.00992844,2943.8,2942.7,4.16599282]
[1644888522427,0.001,2943.3,2942.7,4.16599282]
[1644888522624,0.01535,2943.8,2943.0,5.0]
[1644888523029,0.97101032,2943.3,2943.2,0.8495824]
[1644888523225,0.84962,2943.5,2943.2,0.8495824]
[1644888523425,0.00442156,2943.4,2943.2,0.8495824]
[1644888524079,0.001,2943.7,2943.2,0.8495824]
[1644888524080,0.00442156,2943.7,2943.2,0.8495824]
[1644888524278,1.09600534,2943.7,2943.6,5.0]
[1644888524583,1.1014269,2943.7,2943.6,5.0]
[1644888524978,0.00542156,2943.7,2943.6,5.0]
[1644888525179,0.00992925,2943.8,2943.6,5.8494314]
[1644888525779,0.00992937,2943.8,2943.6,5.8494314]
[1644888526181,0.00992937,2943.8,2943.7,3.14407232]
[1644888526383,0.00992937,2943.8,2943.6,7.6514514]
[1644888526583,0.00992937,2943.8,2943.6,0.9526]
[1644888526782,0.90073441,2943.8,2943.6,0.9526]
[1644888526982,0.90515597,2943.8,2943.6,5.9526]
[1644888527581,0.90515597,2943.8,2943.6,0.9526]
[1644888527582,1.75469597,2943.8,2943.6,0.9526]
[1644888527828,1.75469597,2943.8,2943.2,7.946504]
[1644888527829,0.001,2943.7,2943.2,7.946504]
[1644888528031,0.001,2943.7,2943.2,6.699004]
[1644888528227,0.001,2943.7,2943.5,5.0]
[1644888528422,0.001,2943.7,2943.2,1.699004]
[1644888528423,0.001,2943.7,2943.2,2.548504]
[1644888528624,0.001,2943.7,2943.6,5.0]
[1644888528824,0.00542156,2943.8,2943.6,5.0]
[1644888529025,0.00442156,2944.0,2943.7,3.07329123]
[1644888529225,0.00461884,2944.1,2943.9,5.0]
[1644888529424,0.00461884,2944.1,2943.9,5.84923]
[1644888529623,0.00461884,2944.1,2943.9,6.14923]
[1644888529823,0.00461884,2944.1,2943.9,6.9984471]
[1644888530624,0.01454242,2944.1,2943.9,6.9984471]
[1644888531674,0.00461884,2944.1,2943.9,6.9984471]
[1644888531876,0.01454242,2944.1,2943.9,6.9984471]
[1644888532877,0.00461884,2944.1,2944.0,3.15959029]
[1644888533077,0.01454242,2944.1,2943.9,6.9984471]
[1644888533277,0.01454242,2944.1,2943.9,6.1492171]
[1644888534080,0.00461884,2944.1,2943.9,6.1492171]
[1644888534279,0.01454242,2944.1,2943.9,9.20945577]
[1644888534582,0.01454242,2944.1,2944.0,3.12545058]
[1644888534779,0.01454242,2944.1,2943.9,9.26941833]
[1644888534981,0.01454242,2944.1,2943.9,9.29406206]
[1644888535181,0.00461884,2944.1,2943.8,1.6984341]
[1644888535425,0.00461884,2944.1,2943.6,3.3972681]
[1644888535426,0.01454242,2944.1,2943.7,8.13477099]
[1644888535629,0.01454242,2944.1,2943.9,5.0]
[1644888535828,0.01454242,2944.1,2943.7,5.0]
[1644888536032,1.00392714,2944.1,2943.5,3.12348805]
[1644888536231,1.00392714,2944.1,2943.8,5.0]
[1644888536232,0.00542156,2944.0,2943.8,5.0]
[1644888536431,0.00542156,2944.0,2943.8,6.698505]
[1644888536627,0.00461884,2944.1,2943.8,6.698505]
[1644888536836,0.00992403,2943.9,2943.8,1.698505]
[1644888537032,0.00992403,2943.9,2943.8,6.698505]
[1644888537228,0.00992403,2943.9,2943.8,10.28722181]
[1644888537429,0.00992403,2943.9,2943.8,13.83484181]
[1644888537628,0.00461884,2944.1,2943.8,13.83484181]
[1644888537829,0.00461884,2944.1,2944.0,5.0]
[1644888538030,0.00461884,2944.1,2944.0,8.47030477]
[1644888538229,0.00461884,2944.1,2944.0,8.77030477]
[1644888538429,0.05613611,2944.4,2944.1,4.70691476]
[1644888538632,0.06537379,2944.4,2944.3,5.0]
[1644888538829,0.02568408,2944.4,2944.3,8.49703791]
[1644888539092,0.03838141,2944.8,2944.4,3.35]
[1644888539308,0.03838141,2944.8,2944.5,3.75910672]
[1644888539492,0.03838141,2944.8,2944.7,6.6979591]
[1644888539689,0.03838141,2944.8,2944.7,9.74643918]
[1644888540089,0.06985578,2944.9,2944.7,9.74643918]
[1644888540292,0.00959568,2944.9,2944.8,0.84895]
[1644888540693,0.07945146,2944.9,2944.8,0.84895]
[1644888540896,0.07945146,2944.9,2944.8,3.08042168]
[1644888541099,0.07945146,2944.9,2944.8,3.38042168]
[1644888541100,0.00959568,2944.9,2944.8,3.38042168]
[1644888541300,0.0171547,2945.7,2944.8,3.38042168]
[1644888541494,0.0171547,2945.7,2945.0,0.8490071]
[1644888541495,0.03837609,2945.4,2945.0,0.8490071]
[1644888541894,0.03837609,2945.4,2945.0,5.8490071]
[1644888542094,0.03837609,2945.4,2945.0,6.6980271]
[1644888542495,3.4171547,2945.7,2945.3,5.0]
[1644888542695,3.4171547,2945.7,2945.1,0.3]
[1644888543130,3.4171547,2945.7,2945.2,5.0]
[1644888543329,0.99260011,2945.5,2945.2,5.0]
[1644888543529,0.99260011,2945.5,2944.9,1.69794]
[1644888543530,0.99260011,2945.5,2945.1,1.6979369]
[1644888543729,0.99260011,2945.5,2945.1,1.9979369]
[1644888543930,0.99260011,2945.5,2945.1,6.9979369]
[1644888544128,1.0025207,2945.5,2945.1,6.9979369]
[1644888544328,0.001,2945.4,2945.1,1.6979369]
[1644888544929,0.001,2945.4,2945.2,5.0]
[1644888545129,0.00439948,2945.4,2945.2,5.0]
[1644888545929,0.001,2945.4,2945.2,5.0]
[1644888546332,0.00439694,2945.4,2945.2,5.0]
[1644888547194,0.001,2945.4,2945.2,5.0]
[1644888547501,0.00439545,2945.4,2945.2,5.0]
[1644888548294,0.00439545,2945.4,2945.1,6.6979369]
[1644888548495,0.001,2945.4,2945.1,1.6979369]
[1644888548695,0.00439545,2945.4,2945.2,5.0]
[1644888548895,0.85348545,2945.4,2945.2,5.0]
[1644888549695,0.85009,2945.4,2945.2,5.0]
[1644888549896,0.853488,2945.4,2944.8,4.81941143]
[1644888550098,0.853488,2945.4,2945.1,5.0]
[1644888550727,0.85009,2945.4,2944.9,6.6981535]
[1644888550933,0.85009,2945.4,2944.4,1.8678662]
[1644888551127,1.52611744,2945.4,2944.4,0.1696]
[1644888551328,1.52611744,2945.4,2944.4,3.6696]
[1644888551329,0.001,2945.3,2944.4,3.6696]
[1644888551630,0.84928,2945.0,2944.4,3.6696]
[1644888551826,0.84928,2945.0,2944.6,5.0]
[1644888551827,0.85028,2945.0,2944.6,5.0]
[1644888552028,0.94511719,2944.9,2944.6,5.8491593]
[1644888552229,0.95504574,2944.9,2944.6,5.8491593]
[1644888552425,0.00992855,2944.9,2944.6,5.8491593]
[1644888552631,0.00992855,2944.9,2944.7,5.0]
[1644888553327,0.001,2945.3,2944.9,0.8490706]
[1644888553527,0.0171547,2945.7,2944.9,0.8490706]
[1644888553528,1.06603844,2945.2,2944.9,0.8490706]
[1644888553726,0.001,2945.1,2944.9,1.6981406]
[1644888553928,0.0171547,2945.7,2945.1,0.00034656]
[1644888554587,3.0549047,2945.7,2945.1,0.00034656]
[1644888554779,0.84908,2945.5,2945.1,0.00034656]
[1644888554981,0.49439945,2945.4,2945.1,0.00034656]
[1644888555780,0.00439945,2945.4,2945.1,0.00034656]
[1644888556378,0.85365945,2945.4,2945.1,0.00034656]
[1644888557186,4.26358178,2945.4,2945.1,0.00034656]
[1644888557830,0.84914,2945.3,2945.1,0.00034656]
[1644888558133,0.00439945,2945.2,2945.1,0.00034656]
[1644888558527,0.00439945,2945.3,2945.1,0.00034656]
[1644888559129,1.18132807,2945.3,2945.1,0.00034656]
[1644888559336,0.001,2945.2,2945.1,0.00034656]